[Event "Belt and Road Women 2024"]
[Site "Yuecheng Shaoxing"]
[Date "2024.07.24"]
[Round "1.7"]
[White "Stefanova, Antoaneta"]
[Black "Kairbekova, Amina"]
[Result "1/2-1/2"]
[ECO "E73"]
[WhiteElo "2417"]
[BlackElo "2244"]
[Annotator "RC"]
[PlyCount "62"]
[EventDate "2024.08.01"]
[EventType "swiss"]
[EventCountry "CHN"]
[SourceTitle "playchess.com"]
[Source "ChessBase"]
[SourceQuality "1"]
[TimeControl "5400+30"]

1. d4 {[%emt 0:00:06]} Nf6 {[%emt 0:00:06]} 2. c4 {[%emt 0:00:04]} g6 {[%emt 0:00:04]} 3. Nc3 {[%emt 0:00:04]} Bg7 {[%emt 0:00:05]} 4. e4 {[%emt 0:00:06]} d6 {[%emt 0:00:07]} 5. Be2 {[%emt 0:00:08]} O-O {[%emt 0:00:05]} 6. h4 {[%emt 0:00:05]} c5 {[%emt 0:00:07]} 7. d5 {[%emt 0:00:05]} b5 {[%emt 0:00:05]} 8. cxb5 {[%emt 0:01:29]} a6 {[%emt 0:00:05]} 9. a4 {[%emt 0:04:55]} axb5 {[%emt 0:00:26]} 10. Bxb5 {[%emt 0:00:07]} Ba6 {[%emt 0:00:07]} 11. Bxa6 {[%emt 0:08:26]} Nxa6 {[%emt 0:00:15]} 12. Nf3 {[%emt 0:00:04]} Qd7 {[%emt 0:02:54]} 13. O-O {[%emt 0:00:39]} Ng4 {[%emt 0:08:47]} 14. Ra3 {[%emt 0:08:41]} Rfb8 {[%emt 0:01:48]} 15. Nb5 {[%emt 0:06:36]} Nc7 {[%emt 0:05:18]} 16. Nxc7 {[%emt 0:03:53]} Qxc7 {[%emt 0:00:07]} 17. Nd2 {[%emt 0:03:31]} h5 {[%emt 0:12:14]} 18. Qc2 {[%emt 0:04:58]} Rb4 {[%emt 0:06:26]} 19. b3 {[%emt 0:05:17]} Qd7 {[%emt 0:08:57]} 20. Nc4 {[%emt 0:19:39]} Ne5 {[%emt 0:00:25]} 21. Ne3 {[%emt 0:02:46]} c4 {[%emt 0:03:12]} 22. f4 {[%emt 0:02:04]} cxb3 {[%emt 0:04:12]} 23. Rxb3 {[%emt 0:00:07]} Rxb3 {[%emt 0:00:25]} 24. Qxb3 {[%emt 0:00:17]} Ng4 {[%emt 0:00:11]} 25. Nxg4 {[%emt 0:02:02]} Qxg4 {[%emt 0:03:17]} 26. Be3 {[%emt 0:11:41]} Qg3 {[%emt 0:08:21]} 27. Rf3 {[%emt 0:01:46]} Qe1+ {[%emt 0:07:58]} 28. Rf1 {[%emt 0:00:11]} Qg3 {[%emt 0:12:39]} 29. Rf3 {[%emt 0:00:06]} Qxh4 {[%emt 0:00:46]} 30. Qb4 {[%emt 0:03:54]} Qg4 {[%emt 0:06:58]} 31. a5 {[%emt 0:01:39]} h4 {[%emt 0:03:08]} 1/2-1/2

[Event "Belt and Road Women 2024"]
[Site "Yuecheng Shaoxing"]
[Date "2024.07.24"]
[Round "1.8"]
[White "Li, Xueyi"]
[Black "Beydullayeva, Govhar"]
[Result "1/2-1/2"]
[ECO "D43"]
[WhiteElo "2209"]
[BlackElo "2417"]
[Annotator "RC"]
[PlyCount "61"]
[EventDate "2024.08.01"]
[EventType "swiss"]
[EventCountry "CHN"]
[SourceTitle "playchess.com"]
[Source "ChessBase"]
[SourceQuality "1"]
[TimeControl "5400+30"]

1. d4 {[%emt 0:00:03]} Nf6 {[%emt 0:00:07]} 2. c4 {[%emt 0:00:06]} e6 {[%emt 0:00:04]} 3. Nf3 {[%emt 0:00:02]} d5 {[%emt 0:00:09]} 4. Nc3 {[%emt 0:00:05]} c6 {[%emt 0:00:02]} 5. Qd3 {[%emt 0:01:44]} dxc4 {[%emt 0:00:30]} 6. Qxc4 {[%emt 0:00:15]} b5 {[%emt 0:00:10]} 7. Qd3 {[%emt 0:00:47]} a6 {[%emt 0:00:40]} 8. e4 {[%emt 0:06:48]} c5 {[%emt 0:01:48]} 9. Bg5 {[%emt 0:23:55]} c4 {[%emt 0:10:58]} 10. Qd1 {[%emt 0:00:17]} Qa5 {[%emt 0:02:04]} 11. Bxf6 {[%emt 0:10:29]} gxf6 {[%emt 0:00:13]} 12. Be2 {[%emt 0:00:10]} Bb7 {[%emt 0:11:55]} 13. d5 {[%emt 0:01:56]} Nd7 {[%emt 0:12:16]} 14. dxe6 {[%emt 0:10:50]} fxe6 {[%emt 0:00:20]} 15. Nd4 {[%emt 0:00:08]} Nc5 {[%emt 0:15:48]} 16. Bh5+ {[%emt 0:00:13]} Ke7 {[%emt 0:00:04]} 17. O-O {[%emt 0:00:59]} Rd8 {[%emt 0:02:07]} 18. Qd2 {[%emt 0:19:06]} Qb6 {[%emt 0:11:19]} 19. Qe3 {[%emt 0:03:54]} Kd7 {[%emt 0:07:17]} 20. a4 {[%emt 0:04:00]} b4 {[%emt 0:05:50]} 21. a5 {[%emt 0:00:06]} Qd6 {[%emt 0:01:48]} 22. Rad1 {[%emt 0:05:59]} bxc3 {[%emt 0:06:03]} 23. Nb5 {[%emt 0:00:27]} axb5 {[%emt 0:00:48]} 24. Qxc5 {[%emt 0:01:59]} Bd5 {[%emt 0:00:05]} 25. Qxb5+ {[%emt 0:00:25]} Qc6 {[%emt 0:03:46]} 26. Qxc6+ {[%emt 0:00:08]} Kxc6 {[%emt 0:00:03]} 27. exd5+ {[%emt 0:00:04]} exd5 {[%emt 0:00:35]} 28. bxc3 {[%emt 0:00:05]} Bd6 {[%emt 0:01:06]} 29. f4 {[%emt 0:03:48]} Ra8 {[%emt 0:01:26]} 30. Ra1 {[%emt 0:01:32]} Rhb8 {[%emt 0:01:19]} 31. g3 {[%emt 0:00:47]} 1/2-1/2

[Event "Belt and Road Women 2024"]
[Site "Yuecheng Shaoxing"]
[Date "2024.07.24"]
[Round "1.9"]
[White "Badelka, Olga"]
[Black "Zhang, Xiao"]
[Result "1-0"]
[ECO "A11"]
[WhiteElo "2389"]
[BlackElo "2193"]
[Annotator "RC"]
[PlyCount "68"]
[EventDate "2024.08.01"]
[EventType "swiss"]
[EventCountry "CHN"]
[SourceTitle "playchess.com"]
[Source "ChessBase"]
[SourceQuality "1"]
[TimeControl "5400+30"]

1. Nf3 {[%emt 0:00:04]} d5 {[%emt 0:00:19]} 2. g3 {[%emt 0:00:07]} c6 {[%emt 0:00:12]} 3. Bg2 {[%emt 0:00:06]} Bg4 {[%emt 0:00:20]} 4. O-O {[%emt 0:00:10]} Nf6 {[%emt 0:00:14]} 5. c4 {[%emt 0:00:16]} e6 {[%emt 0:00:37]} 6. cxd5 {[%emt 0:00:23]} exd5 {[%emt 0:00:18]} 7. d3 {[%emt 0:01:03]} Be7 {[%emt 0:03:44]} 8. Nc3 {[%emt 0:01:57]} Nbd7 {[%emt 0:01:50]} 9. h3 {[%emt 0:03:31]} Bxf3 {[%emt 0:04:10]} 10. Bxf3 {[%emt 0:00:11]} O-O {[%emt 0:00:25]} 11. e4 {[%emt 0:05:50]} dxe4 {[%emt 0:11:30]} 12. dxe4 {[%emt 0:00:05]} Nc5 {[%emt 0:03:37]} 13. Be3 {[%emt 0:02:37]} Re8 {[%emt 0:03:12]} 14. Qc2 {[%emt 0:04:30]} Qd3 {[%emt 0:15:08]} 15. Qxd3 {[%emt 0:00:10]} Nxd3 {[%emt 0:00:04]} 16. Be2 {[%emt 0:02:20]} Nc5 {[%emt 0:03:39]} 17. e5 {[%emt 0:02:52]} Nfd7 {[%emt 0:00:40]} 18. f4 {[%emt 0:00:47]} a5 {[%emt 0:00:09]} 19. Rad1 {[%emt 0:02:21]} Rad8 {[%emt 0:03:28]} 20. Kg2 {[%emt 0:02:59]} g6 {[%emt 0:01:58]} 21. Rd2 {[%emt 0:07:27]} Nf8 {[%emt 0:07:20]} 22. Rfd1 {[%emt 0:00:33]} Rxd2 {[%emt 0:01:00]} 23. Rxd2 {[%emt 0:00:03]} Nfe6 {[%emt 0:01:02]} 24. g4 {[%emt 0:01:07]} b6 {[%emt 0:22:18]} 25. Kf3 {[%emt 0:10:43]} f6 {[%emt 0:04:39]} 26. Bc4 {[%emt 0:07:26]} b5 {[%emt 0:02:00]} 27. Bxc5 {[%emt 0:01:43]} Bxc5 {[%emt 0:00:43]} 28. Bxe6+ {[%emt 0:00:05]} Rxe6 {[%emt 0:00:06]} 29. Ne4 {[%emt 0:00:43]} Be7 {[%emt 0:01:49]} 30. exf6 {[%emt 0:00:29]} Rxf6 {[%emt 0:01:45]} 31. Nxf6+ {[%emt 0:00:09]} Bxf6 {[%emt 0:00:04]} 32. b3 {[%emt 0:00:13]} c5 {[%emt 0:00:23]} 33. Rc2 {[%emt 0:00:34]} Bd4 {[%emt 0:00:11]} 34. Ke4 {[%emt 0:00:10]} Kf7 {[%emt 0:00:11]} 1-0

[Event "Belt and Road Women 2024"]
[Site "Yuecheng Shaoxing"]
[Date "2024.07.24"]
[Round "1.10"]
[White "Ha, Yihan"]
[Black "Pham, Le Thao Nguyen"]
[Result "0-1"]
[ECO "D36"]
[WhiteElo "2166"]
[BlackElo "2395"]
[Annotator "RC"]
[PlyCount "108"]
[EventDate "2024.08.01"]
[EventType "swiss"]
[EventCountry "CHN"]
[SourceTitle "playchess.com"]
[Source "ChessBase"]
[SourceQuality "1"]
[TimeControl "5400+30"]

1. d4 {[%emt 0:00:03]} Nf6 {[%emt 0:00:12]} 2. c4 {[%emt 0:00:09]} e6 {[%emt 0:00:18]} 3. Nc3 {[%emt 0:00:12]} d5 {[%emt 0:00:24]} 4. cxd5 {[%emt 0:00:24]} exd5 {[%emt 0:00:16]} 5. Bg5 {[%emt 0:00:11]} c6 {[%emt 0:00:26]} 6. e3 {[%emt 0:00:45]} h6 {[%emt 0:01:09]} 7. Bh4 {[%emt 0:00:28]} Be7 {[%emt 0:00:21]} 8. Bd3 {[%emt 0:00:10]} O-O {[%emt 0:00:19]} 9. Qc2 {[%emt 0:00:38]} Re8 {[%emt 0:00:31]} 10. Nge2 {[%emt 0:00:34]} a5 {[%emt 0:01:59]} 11. O-O {[%emt 0:00:39]} Na6 {[%emt 0:03:23]} 12. a3 {[%emt 0:02:06]} Nc7 {[%emt 0:02:02]} 13. Bg3 {[%emt 0:05:04]} Ne6 {[%emt 0:03:54]} 14. h3 {[%emt 0:03:54]} Bd6 {[%emt 0:05:39]} 15. Rac1 {[%emt 0:06:40]} Ng5 {[%emt 0:03:04]} 16. Rfd1 {[%emt 0:10:55]} Qe7 {[%emt 0:14:24]} 17. Bxd6 {[%emt 0:10:41]} Qxd6 {[%emt 0:00:08]} 18. Nf4 {[%emt 0:01:11]} Bd7 {[%emt 0:06:42]} 19. Na4 {[%emt 0:02:17]} Nge4 {[%emt 0:05:45]} 20. Nc5 {[%emt 0:05:34]} Rab8 {[%emt 0:05:35]} 21. b4 {[%emt 0:01:44]} axb4 {[%emt 0:01:35]} 22. axb4 {[%emt 0:00:07]} g5 {[%emt 0:01:01]} 23. Ne2 {[%emt 0:01:48]} g4 {[%emt 0:05:01]} 24. Bxe4 {[%emt 0:05:36]} dxe4 {[%emt 0:06:07]} 25. h4 {[%emt 0:04:21]} Bf5 {[%emt 0:00:57]} 26. Ng3 {[%emt 0:08:24]} Bg6 {[%emt 0:03:53]} 27. Qe2 {[%emt 0:05:08]} h5 {[%emt 0:02:41]} 28. b5 {[%emt 0:03:53]} Nd5 {[%emt 0:02:28]} 29. bxc6 {[%emt 0:03:40]} bxc6 {[%emt 0:00:26]} 30. Nf1 {[%emt 0:01:43]} Ra8 {[%emt 0:01:56]} 31. g3 {[%emt 0:01:30]} Nb4 {[%emt 0:01:51]} 32. Qc4 {[%emt 0:02:20]} Reb8 {[%emt 0:02:11]} 33. Nd2 {[%emt 0:02:26]} Qd5 {[%emt 0:01:00]} 34. Rb1 {[%emt 0:05:16]} Nd3 {[%emt 0:03:39]} 35. Qxd5 {[%emt 0:03:38]} cxd5 {[%emt 0:00:07]} 36. Rxb8+ {[%emt 0:01:12]} Rxb8 {[%emt 0:00:05]} 37. Ndb3 {[%emt 0:00:53]} Nb2 {[%emt 0:04:23]} 38. Ra1 {[%emt 0:00:46]} Kg7 {[%emt 0:01:01]} 39. Ra7 {[%emt 0:00:37]} Nd3 {[%emt 0:00:50]} 40. Rd7 {[%emt 0:00:52]} Ra8 {[%emt 0:00:26]} 41. Kf1 {[%emt 0:01:48]} Ra2 {[%emt 0:00:18]} 42. Nxd3 {[%emt 0:00:35]} exd3 {[%emt 0:00:03]} 43. Ke1 {[%emt 0:00:29]} Re2+ {[%emt 0:00:29]} 44. Kd1 {[%emt 0:00:28]} Rxf2 {[%emt 0:00:50]} 45. Rxd5 {[%emt 0:00:30]} Rg2 {[%emt 0:00:55]} 46. Re5 {[%emt 0:00:35]} Rxg3 {[%emt 0:00:24]} 47. d5 {[%emt 0:00:24]} Rg1+ {[%emt 0:03:42]} 48. Kd2 {[%emt 0:00:02]} g3 {[%emt 0:01:03]} 49. Rg5 {[%emt 0:00:40]} Rg2+ {[%emt 0:01:22]} 50. Kd1 {[%emt 0:00:30]} Kf6 {[%emt 0:00:19]} 51. Nd4 {[%emt 0:00:54]} Ke7 {[%emt 0:02:05]} 52. Nf5+ {[%emt 0:00:32]} Bxf5 {[%emt 0:00:35]} 53. Rxf5 {[%emt 0:00:03]} Rf2 {[%emt 0:00:09]} 54. Rg5 {[%emt 0:00:55]} g2 {[%emt 0:00:08]} 0-1

[Event "Belt and Road Women 2024"]
[Site "Yuecheng Shaoxing"]
[Date "2024.07.24"]
[Round "1.11"]
[White "Velpula Sarayu"]
[Black "Zhang, Lanlin"]
[Result "1-0"]
[ECO "B94"]
[WhiteElo "2384"]
[BlackElo "2161"]
[Annotator "RC"]
[PlyCount "67"]
[EventDate "2024.08.01"]
[EventType "swiss"]
[EventCountry "CHN"]
[SourceTitle "playchess.com"]
[Source "ChessBase"]
[SourceQuality "1"]
[TimeControl "5400+30"]

1. e4 {[%emt 0:00:26]} c5 {[%emt 0:00:42]} 2. Nf3 {[%emt 0:00:28]} d6 {[%emt 0:00:10]} 3. d4 {[%emt 0:00:32]} cxd4 {[%emt 0:00:12]} 4. Nxd4 {[%emt 0:00:31]} Nf6 {[%emt 0:00:25]} 5. Nc3 {[%emt 0:00:29]} a6 {[%emt 0:00:11]} 6. Bg5 {[%emt 0:00:27]} Nbd7 {[%emt 0:00:07]} 7. Bc4 {[%emt 0:00:30]} Qb6 {[%emt 0:00:16]} 8. Bb3 {[%emt 0:00:22]} e6 {[%emt 0:00:05]} 9. a4 {[%emt 0:00:36]} Nc5 {[%emt 0:25:19]} 10. Bxf6 {[%emt 0:01:50]} gxf6 {[%emt 0:00:04]} 11. a5 {[%emt 0:00:36]} Qc7 {[%emt 0:00:45]} 12. O-O {[%emt 0:00:44]} h5 {[%emt 0:04:29]} 13. f4 {[%emt 0:05:40]} Bd7 {[%emt 0:02:11]} 14. f5 {[%emt 0:03:16]} Be7 {[%emt 0:04:26]} 15. Ba2 {[%emt 0:01:02]} b6 {[%emt 0:07:05]} 16. fxe6 {[%emt 0:09:19]} fxe6 {[%emt 0:00:09]} 17. Qf3 {[%emt 0:01:04]} bxa5 {[%emt 0:13:56]} 18. e5 {[%emt 0:03:35]} O-O-O {[%emt 0:00:14]} 19. exf6 {[%emt 0:03:20]} Bf8 {[%emt 0:00:06]} 20. Kh1 {[%emt 0:13:40]} d5 {[%emt 0:07:45]} 21. Qe2 {[%emt 0:08:39]} Bd6 {[%emt 0:08:32]} 22. Nb3 {[%emt 0:05:59]} Qb6 {[%emt 0:09:22]} 23. Nxc5 {[%emt 0:01:18]} Bxc5 {[%emt 0:00:09]} 24. Bb3 {[%emt 0:01:01]} Bd6 {[%emt 0:03:46]} 25. Ba4 {[%emt 0:10:05]} Bc7 {[%emt 0:00:10]} 26. Rf3 {[%emt 0:04:26]} Qd6 {[%emt 0:03:59]} 27. Rh3 {[%emt 0:00:43]} Rh6 {[%emt 0:02:54]} 28. Bxd7+ {[%emt 0:08:40]} Rxd7 {[%emt 0:00:13]} 29. Rd1 {[%emt 0:00:14]} Qc6 {[%emt 0:05:16]} 30. Rf3 {[%emt 0:09:47]} Rf7 {[%emt 0:00:55]} 31. Rdf1 {[%emt 0:01:22]} h4 {[%emt 0:00:08]} 32. Qd2 {[%emt 0:01:36]} Rh5 {[%emt 0:01:35]} 33. Ne2 {[%emt 0:00:53]} Qd6 {[%emt 0:00:39]} 34. Qf4 {[%emt 0:00:30]} 1-0

[Event "Belt and Road Women 2024"]
[Site "Yuecheng Shaoxing"]
[Date "2024.07.24"]
[Round "1.12"]
[White "Wang, Qinxuanyi"]
[Black "Guo, Qi"]
[Result "1/2-1/2"]
[ECO "D38"]
[WhiteElo "2149"]
[BlackElo "2362"]
[Annotator "RC"]
[PlyCount "70"]
[EventDate "2024.08.01"]
[EventType "swiss"]
[EventCountry "CHN"]
[SourceTitle "playchess.com"]
[Source "ChessBase"]
[SourceQuality "1"]
[TimeControl "5400+30"]

1. d4 {[%emt 0:00:03]} Nf6 {[%emt 0:00:10]} 2. c4 {[%emt 0:00:07]} e6 {[%emt 0:00:04]} 3. Nf3 {[%emt 0:00:06]} d5 {[%emt 0:00:04]} 4. Nc3 {[%emt 0:00:05]} Bb4 {[%emt 0:00:06]} 5. Bg5 {[%emt 0:00:05]} h6 {[%emt 0:00:13]} 6. Bxf6 {[%emt 0:00:05]} Qxf6 {[%emt 0:00:06]} 7. e3 {[%emt 0:00:05]} O-O {[%emt 0:00:25]} 8. Rc1 {[%emt 0:00:06]} c6 {[%emt 0:05:10]} 9. Bd3 {[%emt 0:04:05]} Nd7 {[%emt 0:00:35]} 10. O-O {[%emt 0:05:18]} Qe7 {[%emt 0:00:04]} 11. e4 {[%emt 0:04:00]} dxc4 {[%emt 0:01:06]} 12. Bxc4 {[%emt 0:00:05]} e5 {[%emt 0:00:07]} 13. d5 {[%emt 0:08:16]} Nb6 {[%emt 0:01:56]} 14. Bb3 {[%emt 0:01:07]} Bg4 {[%emt 0:04:32]} 15. dxc6 {[%emt 0:07:26]} bxc6 {[%emt 0:00:55]} 16. Qe2 {[%emt 0:00:06]} Qf6 {[%emt 0:07:21]} 17. Qe3 {[%emt 0:05:30]} Bxf3 {[%emt 0:05:02]} 18. Qxf3 {[%emt 0:00:36]} Qxf3 {[%emt 0:00:11]} 19. gxf3 {[%emt 0:00:06]} Rfd8 {[%emt 0:01:12]} 20. Na4 {[%emt 0:01:19]} Rac8 {[%emt 0:02:15]} 21. Nxb6 {[%emt 0:00:23]} axb6 {[%emt 0:00:06]} 22. Rfd1 {[%emt 0:00:09]} Rd4 {[%emt 0:02:44]} 23. Rxd4 {[%emt 0:06:15]} exd4 {[%emt 0:00:10]} 24. Bc4 {[%emt 0:00:57]} Bd6 {[%emt 0:01:12]} 25. Bb5 {[%emt 0:01:50]} c5 {[%emt 0:00:07]} 26. h3 {[%emt 0:00:12]} Bf4 {[%emt 0:00:16]} 27. Rd1 {[%emt 0:00:50]} Rc7 {[%emt 0:08:45]} 28. Kf1 {[%emt 0:00:55]} Re7 {[%emt 0:01:10]} 29. Ke2 {[%emt 0:00:17]} Re5 {[%emt 0:03:24]} 30. b3 {[%emt 0:06:13]} Rg5 {[%emt 0:02:03]} 31. Rh1 {[%emt 0:00:44]} Kf8 {[%emt 0:09:07]} 32. a4 {[%emt 0:06:47]} Ke7 {[%emt 0:02:24]} 33. Bc4 {[%emt 0:02:11]} Rg2 {[%emt 0:04:07]} 34. Kf1 {[%emt 0:00:05]} Rg6 {[%emt 0:00:32]} 35. Rg1 {[%emt 0:00:19]} Rxg1+ {[%emt 0:00:53]} 1/2-1/2

[Event "Belt and Road Women 2024"]
[Site "Yuecheng Shaoxing"]
[Date "2024.07.24"]
[Round "1.13"]
[White "Zhai, Mo"]
[Black "Hu, Jiani"]
[Result "1-0"]
[ECO "A90"]
[WhiteElo "2348"]
[BlackElo "2148"]
[Annotator "RC"]
[PlyCount "99"]
[EventDate "2024.08.01"]
[EventType "swiss"]
[EventCountry "CHN"]
[SourceTitle "playchess.com"]
[Source "ChessBase"]
[SourceQuality "1"]
[TimeControl "5400+30"]

1. d4 {[%emt 0:00:07]} e6 {[%emt 0:00:13]} 2. c4 {[%emt 0:00:15]} d5 {[%emt 0:00:10]} 3. Nf3 {[%emt 0:00:49]} c6 {[%emt 0:00:32]} 4. Nbd2 {[%emt 0:02:39]} f5 {[%emt 0:00:39]} 5. g3 {[%emt 0:06:12]} Nf6 {[%emt 0:01:22]} 6. Bg2 {[%emt 0:00:09]} Bd6 {[%emt 0:00:56]} 7. b3 {[%emt 0:06:07]} O-O {[%emt 0:01:18]} 8. a4 {[%emt 0:01:33]} a5 {[%emt 0:05:22]} 9. Ba3 {[%emt 0:07:39]} Bxa3 {[%emt 0:05:57]} 10. Rxa3 {[%emt 0:00:13]} Qe7 {[%emt 0:00:17]} 11. Ra1 {[%emt 0:01:56]} Nbd7 {[%emt 0:01:32]} 12. O-O {[%emt 0:02:33]} Ne4 {[%emt 0:02:22]} 13. Qc1 {[%emt 0:08:14]} Qb4 {[%emt 0:11:47]} 14. Rd1 {[%emt 0:04:27]} Ndf6 {[%emt 0:06:48]} 15. Ne5 {[%emt 0:14:11]} Qb6 {[%emt 0:03:45]} 16. Qb2 {[%emt 0:00:00]} Nxd2 {[%emt 0:16:10]} 17. Rxd2 {[%emt 0:03:32]} Bd7 {[%emt 0:02:13]} 18. c5 {[%emt 0:06:44]} Qc7 {[%emt 0:02:52]} 19. b4 {[%emt 0:01:27]} Be8 {[%emt 0:02:40]} 20. Rc2 {[%emt 0:12:21]} Ng4 {[%emt 0:02:20]} 21. Nd3 {[%emt 0:12:19]} g5 {[%emt 0:10:04]} 22. h3 {[%emt 0:00:00]} Nh6 {[%emt 0:03:30]} 23. bxa5 {[%emt 0:00:00]} f4 {[%emt 0:02:39]} 24. gxf4 {[%emt 0:04:48]} gxf4 {[%emt 0:00:33]} 25. Ne5 {[%emt 0:00:27]} Nf5 {[%emt 0:03:38]} 26. Kh1 {[%emt 0:00:33]} Bg6 {[%emt 0:01:54]} 27. Rd2 {[%emt 0:02:17]} Rxa5 {[%emt 0:03:43]} 28. Bf3 {[%emt 0:01:08]} Kh8 {[%emt 0:02:39]} 29. Rdd1 {[%emt 0:01:29]} Qe7 {[%emt 0:02:01]} 30. Rg1 {[%emt 0:00:23]} Be8 {[%emt 0:01:00]} 31. Qd2 {[%emt 0:00:43]} Qh4 {[%emt 0:01:26]} 32. Rg2 {[%emt 0:00:35]} Ra7 {[%emt 0:01:03]} 33. Bg4 {[%emt 0:00:17]} h5 {[%emt 0:00:44]} 34. Bxf5 {[%emt 0:00:46]} Rxf5 {[%emt 0:01:23]} 35. Qd3 {[%emt 0:00:45]} f3 {[%emt 0:01:00]} 36. Nxf3 {[%emt 0:00:07]} Qxh3+ {[%emt 0:00:09]} 37. Rh2 {[%emt 0:00:05]} Qg4 {[%emt 0:00:09]} 38. Qe3 {[%emt 0:00:46]} Rf6 {[%emt 0:01:03]} 39. Rh4 {[%emt 0:00:42]} Qf5 {[%emt 0:00:46]} 40. Kh2 {[%emt 0:00:33]} Ra8 {[%emt 0:01:08]} 41. Rg1 {[%emt 0:00:15]} Rg6 {[%emt 0:00:38]} 42. Rf4 {[%emt 0:00:14]} Qc2 {[%emt 0:00:33]} 43. Qe5+ {[%emt 0:00:18]} Kg8 {[%emt 0:00:21]} 44. Qxe6+ {[%emt 0:00:18]} Kg7 {[%emt 0:00:36]} 45. Qe7+ {[%emt 0:00:17]} Kh6 {[%emt 0:00:28]} 46. Qf8+ {[%emt 0:00:26]} Kh7 {[%emt 0:00:14]} 47. Ng5+ {[%emt 0:00:21]} Rxg5 {[%emt 0:00:22]} 48. Qe7+ {[%emt 0:00:31]} Kh8 {[%emt 0:00:45]} 49. Rf8+ {[%emt 0:00:02]} Rg8 {[%emt 0:00:06]} 50. Rgxg8# {[%emt 0:00:07]} 1-0

[Event "Belt and Road Women 2024"]
[Site "Yuecheng Shaoxing"]
[Date "2024.07.24"]
[Round "1.14"]
[White "Gu, Xiaobing"]
[Black "Ni, Shiqun"]
[Result "0-1"]
[ECO "C47"]
[WhiteElo "2135"]
[BlackElo "2352"]
[Annotator "RC"]
[PlyCount "92"]
[EventDate "2024.08.01"]
[EventType "swiss"]
[EventCountry "CHN"]
[SourceTitle "playchess.com"]
[Source "ChessBase"]
[SourceQuality "1"]
[TimeControl "5400+30"]

1. e4 {[%emt 0:00:13]} e5 {[%emt 0:00:12]} 2. Nf3 {[%emt 0:00:17]} Nf6 {[%emt 0:00:06]} 3. Nc3 {[%emt 0:00:57]} Nc6 {[%emt 0:01:09]} 4. d4 {[%emt 0:00:37]} exd4 {[%emt 0:00:04]} 5. Nxd4 {[%emt 0:00:03]} Bb4 {[%emt 0:00:08]} 6. Nxc6 {[%emt 0:00:17]} bxc6 {[%emt 0:00:04]} 7. Bd3 {[%emt 0:00:09]} d5 {[%emt 0:00:31]} 8. Bd2 {[%emt 0:00:30]} O-O {[%emt 0:01:11]} 9. O-O {[%emt 0:01:34]} Bxc3 {[%emt 0:06:20]} 10. Bxc3 {[%emt 0:00:07]} Nxe4 {[%emt 0:00:07]} 11. Bxe4 {[%emt 0:01:00]} dxe4 {[%emt 0:00:04]} 12. Qh5 {[%emt 0:07:19]} Qd5 {[%emt 0:17:15]} 13. Qh4 {[%emt 0:01:48]} Bf5 {[%emt 0:00:33]} 14. Rfd1 {[%emt 0:03:09]} Qe6 {[%emt 0:01:15]} 15. Qg3 {[%emt 0:02:25]} f6 {[%emt 0:09:31]} 16. Qxc7 {[%emt 0:06:36]} e3 {[%emt 0:04:58]} 17. Rd6 {[%emt 0:15:14]} exf2+ {[%emt 0:04:45]} 18. Kxf2 {[%emt 0:00:05]} Qe4 {[%emt 0:01:34]} 19. Qxc6 {[%emt 0:00:50]} Qxc2+ {[%emt 0:00:57]} 20. Rd2 {[%emt 0:06:15]} Qe4 {[%emt 0:00:05]} 21. Qxe4 {[%emt 0:00:59]} Bxe4 {[%emt 0:00:01]} 22. Re1 {[%emt 0:06:15]} Rfe8 {[%emt 0:05:11]} 23. Rd7 {[%emt 0:00:26]} a6 {[%emt 0:00:56]} 24. g4 {[%emt 0:03:02]} Bc6 {[%emt 0:11:38]} 25. Rxe8+ {[%emt 0:01:36]} Rxe8 {[%emt 0:00:02]} 26. Ra7 {[%emt 0:01:57]} Bb5 {[%emt 0:04:49]} 27. g5 {[%emt 0:00:37]} Re6 {[%emt 0:00:23]} 28. h4 {[%emt 0:01:46]} Be8 {[%emt 0:08:35]} 29. gxf6 {[%emt 0:06:08]} gxf6 {[%emt 0:00:04]} 30. b3 {[%emt 0:03:00]} Bh5 {[%emt 0:04:09]} 31. a3 {[%emt 0:07:18]} Re2+ {[%emt 0:04:02]} 32. Kg1 {[%emt 0:00:52]} Re6 {[%emt 0:00:05]} 33. b4 {[%emt 0:01:51]} Bd1 {[%emt 0:00:45]} 34. Bd4 {[%emt 0:03:38]} h5 {[%emt 0:02:38]} 35. Rd7 {[%emt 0:02:14]} f5 {[%emt 0:03:21]} 36. Rd5 {[%emt 0:05:32]} Re4 {[%emt 0:05:20]} 37. Bf2 {[%emt 0:00:36]} Bc2 {[%emt 0:01:49]} 38. Rc5 {[%emt 0:01:23]} Bd3 {[%emt 0:01:48]} 39. Kg2 {[%emt 0:03:40]} Kg7 {[%emt 0:00:04]} 40. Rd5 {[%emt 0:03:35]} Rg4+ {[%emt 0:00:05]} 41. Kh2 {[%emt 0:00:20]} Be4 {[%emt 0:00:15]} 42. Rd7+ {[%emt 0:01:46]} Kf6 {[%emt 0:00:04]} 43. Bc5 {[%emt 0:01:54]} f4 {[%emt 0:01:13]} 44. Be7+ {[%emt 0:01:17]} Ke6 {[%emt 0:00:03]} 45. Rd4 {[%emt 0:00:05]} Rg2+ {[%emt 0:00:42]} 46. Kh3 {[%emt 0:00:15]} Re2 {[%emt 0:00:12]} 0-1